[Event "*** Titled Tuesday Blitz"]
[Site "Chess.com"]
[Date "2021.03.09"]
[Round "8"]
[White "Durarbayli"]
[Black "Pilopa"]
[Result "1-0"]
[WhiteElo "2687"]
[BlackElo "2561"]
[TimeControl "180+1"]
[EndTime "11:32:20 PST"]
[Termination "Durarbayli won on time"]

1. e4 {[%clk 0:03:00.9]} 1... Nc6 {[%clk 0:02:59.1]} 2. Nf3 {[%clk 0:02:59.7]}
2... d6 {[%clk 0:02:59]} 3. d4 {[%clk 0:02:48.6]} 3... Nf6 {[%clk 0:02:59.9]} 4.
Nc3 {[%clk 0:02:44.3]} 4... g6 {[%clk 0:03:00]} 5. h3 {[%clk 0:02:42.5]} 5... a6
{[%clk 0:02:59.1]} 6. Be3 {[%clk 0:02:40.6]} 6... Bg7 {[%clk 0:02:56.2]} 7. Qd2
{[%clk 0:02:39.6]} 7... b5 {[%clk 0:02:55]} 8. Bd3 {[%clk 0:02:38.4]} 8... O-O
{[%clk 0:02:51]} 9. Bh6 {[%clk 0:02:37.3]} 9... e5 {[%clk 0:02:49.9]} 10. dxe5
{[%clk 0:02:30.2]} 10... Nxe5 {[%clk 0:02:47.6]} 11. Nxe5 {[%clk 0:02:18.1]}
11... dxe5 {[%clk 0:02:48.5]} 12. a4 {[%clk 0:02:13.8]} 12... b4 {[%clk
0:02:39.9]} 13. Ne2 {[%clk 0:02:07.6]} 13... c5 {[%clk 0:02:35.3]} 14. Bxg7
{[%clk 0:02:04.2]} 14... Kxg7 {[%clk 0:02:36.2]} 15. Qe3 {[%clk 0:02:04.7]}
15... Qe7 {[%clk 0:02:20.6]} 16. O-O {[%clk 0:01:57]} 16... Be6 {[%clk
0:02:13.6]} 17. b3 {[%clk 0:01:55.6]} 17... Nh5 {[%clk 0:02:12.9]} 18. g4 {[%clk
0:01:41.7]} 18... Nf6 {[%clk 0:02:05.2]} 19. Ng3 {[%clk 0:01:38.6]} 19... Nd7
{[%clk 0:02:02.2]} 20. Qe2 {[%clk 0:01:31.6]} 20... Qh4 {[%clk 0:01:51.5]} 21.
Kg2 {[%clk 0:01:28.1]} 21... a5 {[%clk 0:01:33]} 22. Rad1 {[%clk 0:01:20.6]}
22... Rfd8 {[%clk 0:01:30.2]} 23. Qe3 {[%clk 0:00:59.7]} 23... c4 {[%clk
0:01:16.3]} 24. Bxc4 {[%clk 0:00:46.8]} 24... Bxc4 {[%clk 0:01:15.4]} 25. bxc4
{[%clk 0:00:47.7]} 25... Nf8 {[%clk 0:01:15.7]} 26. Rd5 {[%clk 0:00:44.5]} 26...
Qf6 {[%clk 0:00:45.3]} 27. f4 {[%clk 0:00:38.1]} 27... exf4 {[%clk 0:00:41.6]}
28. Rxf4 {[%clk 0:00:35.7]} 28... Qb2 {[%clk 0:00:37.8]} 29. Rf2 {[%clk
0:00:33.6]} 29... Ne6 {[%clk 0:00:35.4]} 30. e5 {[%clk 0:00:27.4]} 30... Rac8
{[%clk 0:00:30]} 31. Qf3 {[%clk 0:00:27.2]} 31... Rf8 {[%clk 0:00:17.8]} 32. Rd7
{[%clk 0:00:20.2]} 32... Qxe5 {[%clk 0:00:13.3]} 33. Rxf7+ {[%clk 0:00:19]}
33... Kh8 {[%clk 0:00:13.8]} 34. Qe4 {[%clk 0:00:05.6]} 34... Qxe4+ {[%clk
0:00:10.2]} 35. Nxe4 {[%clk 0:00:06.5]} 35... Rxf7 {[%clk 0:00:09.7]} 36. Rxf7
{[%clk 0:00:07.4]} 36... Rxc4 {[%clk 0:00:03.7]} 37. Nf6 {[%clk 0:00:07.6]}
37... Ng5 {[%clk 0:00:04.2]} 38. Ra7 {[%clk 0:00:05.3]} 38... Rxc2+ {[%clk
0:00:04.2]} 39. Kg3 {[%clk 0:00:05]} 39... Rc3+ {[%clk 0:00:03.8]} 40. Kf4
{[%clk 0:00:05.5]} 40... Nxh3+ {[%clk 0:00:03.7]} 41. Ke5 {[%clk 0:00:05.6]}
41... Ng5 {[%clk 0:00:03.8]} 42. Kf4 {[%clk 0:00:05.4]} 42... h6 {[%clk
0:00:02.7]} 43. Rxa5 {[%clk 0:00:03.6]} 43... Rc4+ {[%clk 0:00:03.6]} 44. Ke5
{[%clk 0:00:02.7]} 44... b3 {[%clk 0:00:04.5]} 45. Rb5 {[%clk 0:00:03.2]} 45...
Rc3 {[%clk 0:00:04.1]} 46. Rb7 {[%clk 0:00:03.1]} 46... Re3+ {[%clk 0:00:03.5]}
47. Kd4 {[%clk 0:00:03.1]} 47... Rg3 {[%clk 0:00:02.5]} 48. a5 {[%clk
0:00:02.6]} 48... Rg1 {[%clk 0:00:01.7]} 49. Rb8+ {[%clk 0:00:02.8]} 49... Kg7
{[%clk 0:00:01]} 50. Ne8+ {[%clk 0:00:03.7]} 1-0

[Event "*** Titled Tuesday Blitz"]
[Site "Chess.com"]
[Date "2021.03.09"]
[Round "8"]
[White "Etud-otradnoe"]
[Black "lindsay790"]
[Result "1-0"]
[WhiteElo "2316"]
[BlackElo "2193"]
[TimeControl "180+1"]
[EndTime "11:32:21 PST"]
[Termination "Etud-otradnoe won on time"]

1. e4 {[%clk 0:03:00.9]} 1... c5 {[%clk 0:02:59.4]} 2. c3 {[%clk 0:03:00.4]}
2... d5 {[%clk 0:02:58.1]} 3. exd5 {[%clk 0:03:00.5]} 3... Qxd5 {[%clk
0:02:58.3]} 4. d4 {[%clk 0:03:00.5]} 4... Nc6 {[%clk 0:02:56.6]} 5. Nf3 {[%clk
0:03:00.2]} 5... Nf6 {[%clk 0:02:55.7]} 6. Na3 {[%clk 0:02:58.2]} 6... Bg4
{[%clk 0:02:54.9]} 7. Be2 {[%clk 0:02:43.7]} 7... e6 {[%clk 0:02:54.4]} 8. Be3
{[%clk 0:02:39.8]} 8... cxd4 {[%clk 0:02:53.2]} 9. Nb5 {[%clk 0:02:39.3]} 9...
Rc8 {[%clk 0:02:39.2]} 10. Nbxd4 {[%clk 0:02:37]} 10... Be7 {[%clk 0:02:32.8]}
11. Qa4 {[%clk 0:02:26.2]} 11... O-O {[%clk 0:02:04.9]} 12. Nxc6 {[%clk
0:02:25.8]} 12... Qxc6 {[%clk 0:02:04.7]} 13. Qxa7 {[%clk 0:02:18.8]} 13... Nd5
{[%clk 0:01:54.2]} 14. Qd4 {[%clk 0:01:54.5]} 14... Bf6 {[%clk 0:01:48.4]} 15.
Qxg4 {[%clk 0:01:53.2]} 15... Bxc3+ {[%clk 0:01:38.5]} 16. Kf1 {[%clk
0:01:16.7]} 16... Nxe3+ {[%clk 0:01:35.1]} 17. fxe3 {[%clk 0:01:15.5]} 17...
Bxb2 {[%clk 0:01:35.1]} 18. Rb1 {[%clk 0:01:10.6]} 18... Qc2 {[%clk 0:01:26.6]}
19. Kf2 {[%clk 0:01:10.3]} 19... f5 {[%clk 0:01:19.6]} 20. Qb4 {[%clk
0:01:03.5]} 20... Bc3 {[%clk 0:01:03.1]} 21. Qb3 {[%clk 0:00:59.1]} 21... Qe4
{[%clk 0:00:49.6]} 22. Qxb7 {[%clk 0:00:55.9]} 22... Qg4 {[%clk 0:00:36.5]} 23.
Qe7 {[%clk 0:00:30.1]} 23... f4 {[%clk 0:00:33.6]} 24. e4 {[%clk 0:00:25.6]}
24... Bf6 {[%clk 0:00:24.7]} 25. Qd7 {[%clk 0:00:21]} 25... Rcd8 {[%clk
0:00:21.6]} 26. Qa7 {[%clk 0:00:17.8]} 26... Qg6 {[%clk 0:00:18.6]} 27. e5
{[%clk 0:00:15.3]} 27... Bg5 {[%clk 0:00:16.5]} 28. Rb7 {[%clk 0:00:14.1]} 28...
Bh6 {[%clk 0:00:16.3]} 29. Rc1 {[%clk 0:00:13.2]} 29... Qe4 {[%clk 0:00:15.1]}
30. Rcc7 {[%clk 0:00:11.4]} 30... Qe3+ {[%clk 0:00:11.2]} 31. Qxe3 {[%clk
0:00:10.3]} 31... fxe3+ {[%clk 0:00:11.4]} 32. Ke1 {[%clk 0:00:10]} 32... Ra8
{[%clk 0:00:09.6]} 33. Ra7 {[%clk 0:00:09.6]} 33... Rab8 {[%clk 0:00:09.8]} 34.
Rcb7 {[%clk 0:00:08.6]} 34... Rbc8 {[%clk 0:00:10.2]} 35. Rc7 {[%clk 0:00:08.9]}
35... Rb8 {[%clk 0:00:10.5]} 36. Rab7 {[%clk 0:00:09.1]} 36... Ra8 {[%clk
0:00:10.9]} 37. Bc4 {[%clk 0:00:09.4]} 37... Rfe8 {[%clk 0:00:09.5]} 38. Ke2
{[%clk 0:00:09.2]} 38... Ra4 {[%clk 0:00:09.3]} 39. Bb3 {[%clk 0:00:08.9]} 39...
Re4 {[%clk 0:00:08.7]} 40. a4 {[%clk 0:00:07.6]} 40... Rg4 {[%clk 0:00:08.4]}
41. g3 {[%clk 0:00:07.1]} 41... Re4 {[%clk 0:00:06.5]} 42. a5 {[%clk 0:00:07.1]}
42... Rg4 {[%clk 0:00:03.1]} 43. a6 {[%clk 0:00:06.8]} 43... Rg6 {[%clk
0:00:01.7]} 44. a7 {[%clk 0:00:05.9]} 44... Bg5 {[%clk 0:00:01.6]} 45. Rb8
{[%clk 0:00:05.7]} 1-0

[Event "*** Titled Tuesday Blitz"]
[Site "Chess.com"]
[Date "2021.03.09"]
[Round "8"]
[White "gatocorbis"]
[Black "fabianvivasz"]
[Result "0-1"]
[WhiteElo "2105"]
[BlackElo "2282"]
[TimeControl "180+1"]
[EndTime "11:32:22 PST"]
[Termination "fabianvivasz won by checkmate"]

1. c4 {[%clk 0:03:00.9]} 1... Nf6 {[%clk 0:02:53]} 2. Nc3 {[%clk 0:02:58.2]}
2... c5 {[%clk 0:02:53.4]} 3. g3 {[%clk 0:02:57]} 3... d5 {[%clk 0:02:53.9]} 4.
cxd5 {[%clk 0:02:54.5]} 4... Nxd5 {[%clk 0:02:54.8]} 5. Bg2 {[%clk 0:02:53.9]}
5... Nc7 {[%clk 0:02:53.3]} 6. Nf3 {[%clk 0:02:50.2]} 6... Nc6 {[%clk
0:02:53.4]} 7. O-O {[%clk 0:02:50]} 7... e5 {[%clk 0:02:53.9]} 8. d3 {[%clk
0:02:49.8]} 8... Be7 {[%clk 0:02:54.4]} 9. Be3 {[%clk 0:02:47.7]} 9... Bd7
{[%clk 0:02:54]} 10. Qd2 {[%clk 0:02:47.2]} 10... O-O {[%clk 0:02:53.2]} 11.
Rac1 {[%clk 0:02:45.9]} 11... Rc8 {[%clk 0:02:50.5]} 12. Ng5 {[%clk 0:02:27.9]}
12... h6 {[%clk 0:02:36.8]} 13. Nge4 {[%clk 0:02:26.5]} 13... b6 {[%clk
0:02:32.5]} 14. Bxh6 {[%clk 0:02:16.6]} 14... gxh6 {[%clk 0:02:25.6]} 15. Qxh6
{[%clk 0:02:15.3]} 15... Nd4 {[%clk 0:02:09.4]} 16. e3 {[%clk 0:02:07.9]} 16...
Nf5 {[%clk 0:02:07.4]} 17. Qh5 {[%clk 0:02:01.5]} 17... Ng7 {[%clk 0:01:11.9]}
18. Qh6 {[%clk 0:01:58.8]} 18... f5 {[%clk 0:01:07.8]} 19. Nd6 {[%clk
0:01:47.2]} 19... Rf6 {[%clk 0:01:03.2]} 20. Qxf6 {[%clk 0:01:34]} 20... Bxf6
{[%clk 0:01:02.3]} 21. Nxc8 {[%clk 0:01:34.5]} 21... Bxc8 {[%clk 0:01:01.7]} 22.
Rcd1 {[%clk 0:01:31.2]} 22... Ba6 {[%clk 0:00:58.6]} 23. Rfe1 {[%clk 0:01:29.6]}
23... Nge6 {[%clk 0:00:45.2]} 24. Bh3 {[%clk 0:01:27.3]} 24... Bxd3 {[%clk
0:00:38.5]} 25. Bxf5 {[%clk 0:01:22]} 25... Bxf5 {[%clk 0:00:33]} 26. Rxd8+
{[%clk 0:01:21]} 26... Nxd8 {[%clk 0:00:33.9]} 27. e4 {[%clk 0:01:20.3]} 27...
Bh3 {[%clk 0:00:32.2]} 28. Rd1 {[%clk 0:01:18.8]} 28... Kf7 {[%clk 0:00:28.4]}
29. Nd5 {[%clk 0:01:09.1]} 29... Nxd5 {[%clk 0:00:26.7]} 30. Rxd5 {[%clk
0:01:08.8]} 30... Nc6 {[%clk 0:00:25.3]} 31. f3 {[%clk 0:01:04.7]} 31... Nb4
{[%clk 0:00:21]} 32. Rd1 {[%clk 0:00:58]} 32... Be7 {[%clk 0:00:17]} 33. a3
{[%clk 0:00:56.3]} 33... Nc2 {[%clk 0:00:16.8]} 34. Rd2 {[%clk 0:00:53.6]} 34...
Nd4 {[%clk 0:00:17]} 35. Kf2 {[%clk 0:00:53.3]} 35... c4 {[%clk 0:00:17.4]} 36.
f4 {[%clk 0:00:49.8]} 36... Bc5 {[%clk 0:00:17.6]} 37. Rd1 {[%clk 0:00:35.7]}
37... Nc2+ {[%clk 0:00:16.3]} 38. Kf3 {[%clk 0:00:33]} 38... Nd4+ {[%clk
0:00:15.5]} 39. Kf2 {[%clk 0:00:31.8]} 39... Bg4 {[%clk 0:00:06]} 40. Rh1 {[%clk
0:00:23.6]} 40... Ne6+ {[%clk 0:00:03.9]} 41. Ke1 {[%clk 0:00:18.6]} 41... exf4
{[%clk 0:00:04.2]} 42. gxf4 {[%clk 0:00:17.3]} 42... Nxf4 {[%clk 0:00:04.6]} 43.
Rf1 {[%clk 0:00:16.9]} 43... Be3 {[%clk 0:00:04]} 44. h3 {[%clk 0:00:16.2]}
44... Bh5 {[%clk 0:00:04.4]} 45. Rxf4+ {[%clk 0:00:11.5]} 45... Bxf4 {[%clk
0:00:04.4]} 46. Kf2 {[%clk 0:00:12]} 46... Ke6 {[%clk 0:00:04.9]} 47. h4 {[%clk
0:00:10]} 47... Be5 {[%clk 0:00:05.4]} 48. Ke3 {[%clk 0:00:09.4]} 48... Bxb2
{[%clk 0:00:05.9]} 49. Kf4 {[%clk 0:00:07.8]} 49... c3 {[%clk 0:00:06.8]} 50.
Kg5 {[%clk 0:00:08.2]} 50... Be2 {[%clk 0:00:06.8]} 51. Kg6 {[%clk 0:00:05.8]}
51... c2 {[%clk 0:00:07.7]} 52. h5 {[%clk 0:00:06.2]} 52... c1=Q {[%clk
0:00:08.6]} 53. h6 {[%clk 0:00:05.2]} 53... Qg1+ {[%clk 0:00:09.5]} 54. Kh7
{[%clk 0:00:04.4]} 54... Kf7 {[%clk 0:00:09.7]} 55. e5 {[%clk 0:00:02.4]} 55...
Qg8# {[%clk 0:00:10.6]} 0-1

[Event "*** Titled Tuesday Blitz"]
[Site "Chess.com"]
[Date "2021.03.09"]
[Round "8"]
[White "ChristopherYoo"]
[Black "ShimanovAlex"]
[Result "0-1"]
[WhiteElo "2925"]
[BlackElo "2809"]
[TimeControl "180+1"]
[EndTime "11:32:23 PST"]
[Termination "ShimanovAlex won by resignation"]

1. d4 {[%clk 0:03:00.9]} 1... d5 {[%clk 0:02:59.6]} 2. Nf3 {[%clk 0:03:00.8]}
2... Nf6 {[%clk 0:02:57.6]} 3. c4 {[%clk 0:03:00.9]} 3... e6 {[%clk 0:02:57.8]}
4. Nc3 {[%clk 0:03:00.6]} 4... Nbd7 {[%clk 0:02:57.8]} 5. Qd3 {[%clk 0:02:56.2]}
5... dxc4 {[%clk 0:02:51.6]} 6. Qxc4 {[%clk 0:02:55.5]} 6... a6 {[%clk
0:02:52.5]} 7. e4 {[%clk 0:02:52.1]} 7... b5 {[%clk 0:02:47.4]} 8. Qd3 {[%clk
0:02:52]} 8... Bb7 {[%clk 0:02:46.5]} 9. e5 {[%clk 0:02:14.3]} 9... Nd5 {[%clk
0:02:46.1]} 10. Be2 {[%clk 0:02:11.1]} 10... c5 {[%clk 0:02:45.3]} 11. O-O
{[%clk 0:02:10.5]} 11... Be7 {[%clk 0:02:44.7]} 12. Ne4 {[%clk 0:02:05]} 12...
c4 {[%clk 0:02:40.6]} 13. Qb1 {[%clk 0:02:03.6]} 13... h6 {[%clk 0:02:33.6]} 14.
a4 {[%clk 0:01:58.1]} 14... Qb6 {[%clk 0:02:19.4]} 15. Bd2 {[%clk 0:01:41.3]}
15... O-O {[%clk 0:02:11.6]} 16. b3 {[%clk 0:01:40.1]} 16... cxb3 {[%clk
0:01:51.9]} 17. axb5 {[%clk 0:01:38.6]} 17... axb5 {[%clk 0:01:51.3]} 18. Qxb3
{[%clk 0:01:38.3]} 18... b4 {[%clk 0:01:51.6]} 19. Rfb1 {[%clk 0:01:26.3]} 19...
Rfc8 {[%clk 0:01:46.6]} 20. Bd3 {[%clk 0:01:02.9]} 20... Ba6 {[%clk 0:01:39.9]}
21. h4 {[%clk 0:00:51.3]} 21... Bxd3 {[%clk 0:01:30.4]} 22. Qxd3 {[%clk
0:00:50]} 22... Rxa1 {[%clk 0:01:29.5]} 23. Rxa1 {[%clk 0:00:48]} 23... b3
{[%clk 0:01:29.2]} 24. Rb1 {[%clk 0:00:43.8]} 24... b2 {[%clk 0:01:28.9]} 25. g4
{[%clk 0:00:32.2]} 25... Ra8 {[%clk 0:01:21.2]} 26. g5 {[%clk 0:00:17.9]} 26...
h5 {[%clk 0:01:11.4]} 27. g6 {[%clk 0:00:16.4]} 27... fxg6 {[%clk 0:01:09.7]}
28. Nc3 {[%clk 0:00:16.2]} 28... Nxc3 {[%clk 0:00:58.8]} 29. Bxc3 {[%clk
0:00:17.1]} 29... Ra3 {[%clk 0:00:54.5]} 30. Qc4 {[%clk 0:00:07.2]} 30... Qb3
{[%clk 0:00:49.7]} 31. Qc8+ {[%clk 0:00:02.7]} 31... Nf8 {[%clk 0:00:49.8]} 32.
Bxb2 {[%clk 0:00:02.4]} 32... Ra2 {[%clk 0:00:27.3]} 33. Qc3 {[%clk 0:00:02.6]}
33... Qb7 {[%clk 0:00:20.2]} 34. Qd3 {[%clk 0:00:01.5]} 34... Rxb2 {[%clk
0:00:18.4]} 35. Rxb2 {[%clk 0:00:02]} 35... Qxb2 {[%clk 0:00:18.7]} 36. d5
{[%clk 0:00:02.9]} 36... exd5 {[%clk 0:00:17.8]} 37. Qxd5+ {[%clk 0:00:03.8]}
37... Kh8 {[%clk 0:00:17.9]} 38. Qf7 {[%clk 0:00:04.1]} 38... Qb1+ {[%clk
0:00:15.7]} 39. Kg2 {[%clk 0:00:03.9]} 39... Qb4 {[%clk 0:00:16.6]} 40. Kf1
{[%clk 0:00:01.7]} 40... Qb5+ {[%clk 0:00:15.6]} 41. Kg2 {[%clk 0:00:02]} 41...
Qd7 {[%clk 0:00:15.7]} 42. Kf1 {[%clk 0:00:01.7]} 42... Qe6 {[%clk 0:00:15.3]}
43. Qe8 {[%clk 0:00:02.1]} 43... Kh7 {[%clk 0:00:14.1]} 44. Ng5+ {[%clk
0:00:01.9]} 44... Bxg5 {[%clk 0:00:14.1]} 45. Qxf8 {[%clk 0:00:02.1]} 45... Bxh4
{[%clk 0:00:13.9]} 46. Qf4 {[%clk 0:00:02.2]} 46... Be7 {[%clk 0:00:13.5]} 47.
Qe4 {[%clk 0:00:02.7]} 47... Qf5 {[%clk 0:00:12.7]} 48. Qd5 {[%clk 0:00:02.2]}
48... Bf6 {[%clk 0:00:12.3]} 49. Qf7 {[%clk 0:00:01.5]} 49... Qxe5 {[%clk
0:00:12.4]} 50. Qd7 {[%clk 0:00:01.6]} 50... Qf5 {[%clk 0:00:12.7]} 51. Qd2
{[%clk 0:00:01.3]} 51... h4 {[%clk 0:00:12.7]} 52. Qe3 {[%clk 0:00:01.9]} 52...
Qg4 {[%clk 0:00:12]} 53. f3 {[%clk 0:00:01.7]} 53... Qg3 {[%clk 0:00:11.9]} 54.
Qe2 {[%clk 0:00:01.2]} 54... h3 {[%clk 0:00:12]} 55. f4 {[%clk 0:00:01.1]} 55...
h2 {[%clk 0:00:10.8]} 56. Qg2 {[%clk 0:00:01.5]} 56... Qxg2+ {[%clk 0:00:10.6]}
57. Kxg2 {[%clk 0:00:02.4]} 57... Kh6 {[%clk 0:00:11.1]} 58. Kxh2 {[%clk
0:00:02.7]} 58... g5 {[%clk 0:00:11.4]} 59. f5 {[%clk 0:00:02.7]} 59... g4
{[%clk 0:00:11.4]} 0-1

[Event "*** Titled Tuesday Blitz"]
[Site "Chess.com"]
[Date "2021.03.09"]
[Round "8"]
[White "DarZay"]
[Black "Khnykin_Nikolay"]
[Result "1-0"]
[WhiteElo "2166"]
[BlackElo "2046"]
[TimeControl "180+1"]
[EndTime "11:32:23 PST"]
[Termination "DarZay won by checkmate"]

1. e4 {[%clk 0:03:00.9]} 1... e6 {[%clk 0:02:48.8]} 2. d4 {[%clk 0:03:00]} 2...
d5 {[%clk 0:02:44.7]} 3. e5 {[%clk 0:03:00]} 3... c5 {[%clk 0:02:43.9]} 4. c3
{[%clk 0:02:59.8]} 4... Qb6 {[%clk 0:02:42.4]} 5. Nf3 {[%clk 0:02:58]} 5... Nc6
{[%clk 0:02:41.2]} 6. a3 {[%clk 0:02:57.9]} 6... cxd4 {[%clk 0:02:39.5]} 7. cxd4
{[%clk 0:02:56.5]} 7... Bd7 {[%clk 0:02:36.9]} 8. b4 {[%clk 0:02:54.2]} 8... Rc8
{[%clk 0:02:34.1]} 9. Bb2 {[%clk 0:02:53.7]} 9... Na5 {[%clk 0:02:22.2]} 10.
Nbd2 {[%clk 0:02:44.3]} 10... Ne7 {[%clk 0:02:18.5]} 11. Rb1 {[%clk 0:02:40.4]}
11... Nac6 {[%clk 0:02:15.4]} 12. Bd3 {[%clk 0:02:38.1]} 12... Nf5 {[%clk
0:02:14]} 13. Nb3 {[%clk 0:02:24.6]} 13... Be7 {[%clk 0:01:50.4]} 14. Nc5 {[%clk
0:02:12.3]} 14... Bxc5 {[%clk 0:01:44]} 15. dxc5 {[%clk 0:02:03]} 15... Qc7
{[%clk 0:01:36.7]} 16. Bxf5 {[%clk 0:02:01.7]} 16... exf5 {[%clk 0:01:34.1]} 17.
Qxd5 {[%clk 0:02:01.6]} 17... Be6 {[%clk 0:01:33.5]} 18. Qd6 {[%clk 0:01:57.9]}
18... Qxd6 {[%clk 0:01:31.5]} 19. exd6 {[%clk 0:01:56.7]} 19... O-O {[%clk
0:01:30.1]} 20. O-O {[%clk 0:01:55]} 20... Bd7 {[%clk 0:01:28.5]} 21. Rfe1
{[%clk 0:01:42.8]} 21... Rfe8 {[%clk 0:01:24.3]} 22. Ne5 {[%clk 0:01:26.9]}
22... Nxe5 {[%clk 0:01:20.6]} 23. Rxe5 {[%clk 0:01:23.5]} 23... Rxe5 {[%clk
0:01:17.5]} 24. Bxe5 {[%clk 0:01:23.1]} 24... Re8 {[%clk 0:01:17.8]} 25. Bf4
{[%clk 0:01:17.7]} 25... f6 {[%clk 0:01:15.3]} 26. h3 {[%clk 0:01:10.2]} 26...
Re2 {[%clk 0:01:14.2]} 27. Be3 {[%clk 0:01:06.6]} 27... Ra2 {[%clk 0:01:11.3]}
28. Rb3 {[%clk 0:01:05.7]} 28... a6 {[%clk 0:01:04.9]} 29. Bd4 {[%clk 0:00:53]}
29... Kf7 {[%clk 0:01:02.5]} 30. Re3 {[%clk 0:00:44.9]} 30... Be6 {[%clk
0:01:01.6]} 31. Rd3 {[%clk 0:00:44.8]} 31... Ke8 {[%clk 0:00:58.8]} 32. Rg3
{[%clk 0:00:37]} 32... Kf7 {[%clk 0:00:56.3]} 33. Re3 {[%clk 0:00:34.9]} 33...
Rc2 {[%clk 0:00:39.7]} 34. Kf1 {[%clk 0:00:33]} 34... Rc1+ {[%clk 0:00:22.1]}
35. Ke2 {[%clk 0:00:32.6]} 35... Rc2+ {[%clk 0:00:21.9]} 36. Ke1 {[%clk
0:00:30]} 36... Ra2 {[%clk 0:00:20.3]} 37. Kd1 {[%clk 0:00:22.6]} 37... Rxf2
{[%clk 0:00:17.6]} 38. Rxe6 {[%clk 0:00:22.1]} 38... Rf1+ {[%clk 0:00:15]} 39.
Re1 {[%clk 0:00:21.4]} 39... Rxe1+ {[%clk 0:00:14.9]} 40. Kxe1 {[%clk
0:00:21.3]} 40... Ke6 {[%clk 0:00:15.6]} 41. Ke2 {[%clk 0:00:20.9]} 41... Kd7
{[%clk 0:00:16.5]} 42. Kf3 {[%clk 0:00:20.2]} 42... h6 {[%clk 0:00:17.4]} 43.
Kf4 {[%clk 0:00:20.1]} 43... Kc6 {[%clk 0:00:18.3]} 44. Kxf5 {[%clk 0:00:19.9]}
44... b6 {[%clk 0:00:17.8]} 45. Kg6 {[%clk 0:00:19.7]} 45... bxc5 {[%clk
0:00:16.6]} 46. Bxc5 {[%clk 0:00:19.8]} 46... f5 {[%clk 0:00:16.2]} 47. Kxf5
{[%clk 0:00:19.6]} 47... h5 {[%clk 0:00:16.6]} 48. Kg6 {[%clk 0:00:19.3]} 48...
h4 {[%clk 0:00:17.5]} 49. Kxg7 {[%clk 0:00:19.7]} 49... a5 {[%clk 0:00:17]} 50.
Kf6 {[%clk 0:00:18.8]} 50... Kd7 {[%clk 0:00:16.9]} 51. Ke5 {[%clk 0:00:18.1]}
51... Kc6 {[%clk 0:00:17.8]} 52. bxa5 {[%clk 0:00:17.2]} 52... Kd7 {[%clk
0:00:18.7]} 53. a6 {[%clk 0:00:17.1]} 53... Kc6 {[%clk 0:00:19.6]} 54. a7 {[%clk
0:00:16.8]} 54... Kd7 {[%clk 0:00:20.5]} 55. a4 {[%clk 0:00:16]} 55... Kc6
{[%clk 0:00:21.4]} 56. a8=Q+ {[%clk 0:00:16]} 56... Kd7 {[%clk 0:00:22.3]} 57.
Qb7+ {[%clk 0:00:15.7]} 57... Ke8 {[%clk 0:00:21.7]} 58. Qe7# {[%clk 0:00:14.9]}
1-0

[Event "*** Titled Tuesday Blitz"]
[Site "Chess.com"]
[Date "2021.03.09"]
[Round "8"]
[White "hansen"]
[Black "mishanick"]
[Result "1-0"]
[WhiteElo "2867"]
[BlackElo "2988"]
[TimeControl "180+1"]
[EndTime "11:32:25 PST"]
[Termination "hansen won by checkmate"]

1. e4 {[%clk 0:03:00.9]} 1... c5 {[%clk 0:03:00.6]} 2. Nf3 {[%clk 0:02:54.9]}
2... d6 {[%clk 0:03:01.2]} 3. Bb5+ {[%clk 0:02:53.3]} 3... Nd7 {[%clk
0:03:01.2]} 4. c3 {[%clk 0:02:51.9]} 4... Nf6 {[%clk 0:03:00.4]} 5. Qe2 {[%clk
0:02:51.7]} 5... e6 {[%clk 0:02:59.3]} 6. O-O {[%clk 0:02:51.6]} 6... a6 {[%clk
0:02:59.3]} 7. Ba4 {[%clk 0:02:51.8]} 7... b5 {[%clk 0:02:59.4]} 8. Bc2 {[%clk
0:02:52]} 8... c4 {[%clk 0:02:59.9]} 9. b3 {[%clk 0:02:52]} 9... cxb3 {[%clk
0:02:59.4]} 10. axb3 {[%clk 0:02:51.5]} 10... Bb7 {[%clk 0:02:59.9]} 11. d4
{[%clk 0:02:52.1]} 11... Be7 {[%clk 0:02:59.7]} 12. Re1 {[%clk 0:02:52.1]} 12...
Qc7 {[%clk 0:02:59.8]} 13. Bd3 {[%clk 0:02:47.6]} 13... O-O {[%clk 0:02:58.9]}
14. Bb2 {[%clk 0:02:47.6]} 14... e5 {[%clk 0:02:53.4]} 15. Nbd2 {[%clk
0:02:47.1]} 15... Nh5 {[%clk 0:02:43.7]} 16. Qe3 {[%clk 0:02:40.9]} 16... Nf4
{[%clk 0:02:41.8]} 17. Bf1 {[%clk 0:02:40.7]} 17... Ne6 {[%clk 0:02:38.3]} 18.
g3 {[%clk 0:02:26.8]} 18... Bf6 {[%clk 0:02:34.4]} 19. b4 {[%clk 0:02:06.9]}
19... h6 {[%clk 0:02:01.1]} 20. Rac1 {[%clk 0:02:02.5]} 20... exd4 {[%clk
0:01:57.2]} 21. cxd4 {[%clk 0:02:02.3]} 21... Qb6 {[%clk 0:01:57.5]} 22. Nb3
{[%clk 0:01:51.1]} 22... Rad8 {[%clk 0:01:47.4]} 23. Qd2 {[%clk 0:01:46.7]}
23... Rfe8 {[%clk 0:01:38.5]} 24. h4 {[%clk 0:01:45]} 24... Nef8 {[%clk
0:01:31.1]} 25. d5 {[%clk 0:01:37.1]} 25... Bxb2 {[%clk 0:01:27.4]} 26. Qxb2
{[%clk 0:01:38]} 26... Ng6 {[%clk 0:01:24.5]} 27. Qd4 {[%clk 0:01:33.4]} 27...
Nge5 {[%clk 0:01:10.8]} 28. Nfd2 {[%clk 0:01:30.8]} 28... Rc8 {[%clk 0:00:54.6]}
29. f4 {[%clk 0:01:12.8]} 29... Ng4 {[%clk 0:00:47.6]} 30. Qxb6 {[%clk
0:01:06.6]} 30... Nxb6 {[%clk 0:00:47.2]} 31. Bh3 {[%clk 0:01:00.4]} 31... h5
{[%clk 0:00:47.1]} 32. Bxg4 {[%clk 0:00:57.7]} 32... hxg4 {[%clk 0:00:47.1]} 33.
f5 {[%clk 0:00:58.2]} 33... Kf8 {[%clk 0:00:30.2]} 34. Kf2 {[%clk 0:00:52.9]}
34... Nd7 {[%clk 0:00:27.6]} 35. Na5 {[%clk 0:00:48]} 35... Ba8 {[%clk
0:00:27.6]} 36. Nab3 {[%clk 0:00:39.6]} 36... Ne5 {[%clk 0:00:27.6]} 37. Rxc8
{[%clk 0:00:35.1]} 37... Rxc8 {[%clk 0:00:28.5]} 38. Ke2 {[%clk 0:00:30.3]}
38... Rc3 {[%clk 0:00:11.4]} 39. Rc1 {[%clk 0:00:30]} 39... Rxg3 {[%clk
0:00:11.1]} 40. Rc8+ {[%clk 0:00:29.6]} 40... Ke7 {[%clk 0:00:11.8]} 41. Rxa8
{[%clk 0:00:29.9]} 41... Rh3 {[%clk 0:00:11.9]} 42. Nd4 {[%clk 0:00:21.2]} 42...
Rh2+ {[%clk 0:00:10.5]} 43. Ke3 {[%clk 0:00:19.9]} 43... g3 {[%clk 0:00:06.7]}
44. Nc6+ {[%clk 0:00:17.2]} 44... Kf6 {[%clk 0:00:02.8]} 45. Nxe5 {[%clk
0:00:17]} 45... Kxe5 {[%clk 0:00:02.7]} 46. Nf3+ {[%clk 0:00:17.3]} 46... Kf6
{[%clk 0:00:03.3]} 47. Rxa6 {[%clk 0:00:15]} 47... Rb2 {[%clk 0:00:01.9]} 48.
Rxd6+ {[%clk 0:00:14.2]} 48... Ke7 {[%clk 0:00:02.5]} 49. Rc6 {[%clk 0:00:14.3]}
49... g2 {[%clk 0:00:03.4]} 50. Rc1 {[%clk 0:00:14.4]} 50... Rxb4 {[%clk
0:00:03.7]} 51. e5 {[%clk 0:00:08.8]} 51... Rg4 {[%clk 0:00:03.6]} 52. d6+
{[%clk 0:00:08.9]} 52... Kd7 {[%clk 0:00:03.3]} 53. Rc7+ {[%clk 0:00:08.8]}
53... Ke8 {[%clk 0:00:03.7]} 54. Kf2 {[%clk 0:00:09.2]} 54... b4 {[%clk
0:00:03.5]} 55. Rb7 {[%clk 0:00:09.2]} 55... Rf4 {[%clk 0:00:03.3]} 56. e6
{[%clk 0:00:08.8]} 56... Rxf3+ {[%clk 0:00:02.9]} 57. Kxf3 {[%clk 0:00:08.5]}
57... g1=Q {[%clk 0:00:02.3]} 58. Rb8# {[%clk 0:00:08.2]} 1-0